fUST/lending_fUST_20250503
["ID","MTS","AMOUNT","RATE_DAILY","PERIOD"]
[359696245,1746259630025,-3182.11580251,0.00019177,2]
[359696246,1746259630058,-3182.11580251,0.00019177,2]
[359696247,1746259630093,-1195.501178,0.00019177,2]
[359696551,1746259757222,-250.0,0.00018124,2]
[359696552,1746259757245,-41.56372,0.000189,2]
[359696569,1746259832396,-115.17996446,0.000189,2]
[359696570,1746259832406,-591.2,0.00019068,3]
[359696571,1746259832416,-295.6,0.00019068,3]
[359696572,1746259832427,-300.0,0.00019076,2]
[359696573,1746259832441,-300.0,0.00019076,2]
[359696574,1746259832451,-300.0,0.00019076,2]
[359696575,1746259832460,-1200.0,0.00019076,2]
[359696576,1746259832470,-467.2185692,0.00019077,2]
[359696577,1746259832482,-352.78216867,0.00019077,2]
[359696578,1746259832491,-703.00232567,0.00019077,2]
[359696579,1746259832505,-557.88898355,0.00019077,2]
[359696580,1746259832516,-405.60101645,0.00019077,2]
[359696581,1746259832543,-855.29029277,0.00019077,2]
[359696582,1746259832553,-1260.89130922,0.00019077,2]
[359696583,1746259832562,-1260.89130922,0.00019077,2]
[359696584,1746259832572,-1260.89130922,0.00019077,2]
[359696585,1746259832581,-1260.89130922,0.00019077,2]
[359696586,1746259832591,-1260.89130922,0.00019077,2]
[359696587,1746259832601,-1260.89130922,0.00019077,2]
[359696588,1746259832610,-1260.89130922,0.00019077,2]
[359696589,1746259832620,-1260.89130922,0.00019077,2]
[359696590,1746259832630,-1260.89130922,0.00019077,2]
[359696591,1746259832640,-1260.89130922,0.00019077,2]
[359696592,1746259832650,-1260.89130922,0.00019077,2]
[359696593,1746259832660,-1260.89130922,0.00019077,2]
[359696594,1746259832670,-1260.89130922,0.00019077,2]
[359696595,1746259832679,-1260.89130922,0.00019077,2]
[359696596,1746259832690,-1260.89130922,0.00019077,2]
[359696597,1746259832700,-1260.89130922,0.00019077,2]
[359696598,1746259832710,-1260.89130922,0.00019077,2]
[359696599,1746259832720,-1260.89130922,0.00019077,2]
[359696600,1746259832730,-1260.89130922,0.00019077,2]
[359696601,1746259832740,-1260.89130922,0.00019077,2]
[359696602,1746259832750,-1260.89130922,0.00019077,2]
[359696603,1746259832760,-1260.89130922,0.00019077,2]
[359696604,1746259832770,-1260.89130922,0.00019077,2]
[359696605,1746259832779,-1260.89130922,0.00019077,2]
[359696606,1746259832789,-1260.89130922,0.00019077,2]
[359696607,1746259832799,-1260.89130922,0.00019077,2]
[359696608,1746259832808,-1260.89130922,0.00019077,2]
[359696609,1746259832818,-1260.89130922,0.00019077,2]
[359696610,1746259832828,-1260.89130922,0.00019077,2]
[359696611,1746259832837,-1260.89130922,0.00019077,2]
[359696612,1746259832847,-1260.89130922,0.00019077,2]
[359696613,1746259832858,-1260.89130922,0.00019077,2]
[359696614,1746259832867,-1260.89130922,0.00019077,2]
[359696615,1746259832877,-1260.89130922,0.00019077,2]
[359696616,1746259832887,-1260.89130922,0.00019077,2]
[359696617,1746259832896,-1260.89130922,0.00019077,2]
[359696618,1746259832906,-1260.89130922,0.00019077,2]
[359696619,1746259832916,-1260.89130922,0.00019077,2]
[359696620,1746259832926,-1260.89130922,0.00019077,2]
[359696621,1746259832936,-1260.89130922,0.00019077,2]
[359696622,1746259832945,-1260.89130922,0.00019077,2]
[359696623,1746259832955,-1260.89130922,0.00019077,2]
[359696624,1746259832964,-196452.75,0.00019078,2]
[359696625,1746259832974,-151.0,0.00019166,2]
[359696626,1746259832983,-500.0,0.00019173,2]
[359696627,1746259832993,-500.0,0.00019173,2]
[359696628,1746259833004,-500.0,0.00019173,2]
[359696629,1746259833014,-500.0,0.00019173,2]
[359696630,1746259833024,-500.0,0.00019173,2]
[359696631,1746259833033,-500.0,0.00019173,2]
[359696632,1746259833043,-500.0,0.00019173,2]
[359696633,1746259833052,-500.0,0.00019173,2]
[359696634,1746259833062,-400.0,0.00019178,2]
[359696635,1746259833072,-400.0,0.00019178,2]
[359696636,1746259833082,-400.0,0.00019178,2]
[359696637,1746259833092,-400.0,0.00019178,2]
[359696638,1746259833102,-400.0,0.00019178,2]
[359696639,1746259833112,-400.0,0.00019178,2]
[359696640,1746259833121,-400.0,0.00019178,2]
[359696641,1746259833132,-400.0,0.00019178,2]
[359696642,1746259833142,-400.0,0.00019178,2]
[359696643,1746259833153,-400.0,0.00019178,2]
[359696644,1746259833164,-400.0,0.00019178,2]
[359696645,1746259833179,-510.71021201,0.00019178,2]
[359696646,1746259833195,-400.0,0.00019178,2]
[359696647,1746259833205,-400.0,0.00019178,2]
[359696648,1746259833217,-400.0,0.00019178,2]
[359696649,1746259833228,-400.0,0.00019178,2]
[359696650,1746259833239,-400.0,0.00019178,2]
[359696651,1746259833251,-400.0,0.00019178,2]
[359696652,1746259833261,-400.0,0.00019178,2]
[359696653,1746259833271,-400.0,0.00019178,2]
[359696654,1746259833281,-400.0,0.00019178,2]
[359696655,1746259833291,-500.0,0.00019178,2]
[359696656,1746259833301,-500.0,0.00019178,2]
[359696657,1746259833312,-500.0,0.00019178,2]
[359696658,1746259833322,-500.0,0.00019178,2]
[359696659,1746259833332,-500.0,0.00019178,2]
[359696660,1746259833343,-500.0,0.00019178,2]
[359696661,1746259833354,-500.0,0.00019178,2]
[359696662,1746259833364,-185.2207585,0.00019178,2]
[359696663,1746259833376,-400.0,0.00019178,2]
[359696664,1746259833386,-400.0,0.00019178,2]
[359696665,1746259833397,-400.0,0.00019178,2]
[359696666,1746259833406,-208.12118685,0.00019178,2]
[359696667,1746259833418,-400.0,0.00019178,2]
[359696668,1746259833428,-504.48907196,0.00019178,2]
[359696669,1746259833441,-400.0,0.00019178,2]
[359696670,1746259833451,-519.71,0.00019178,2]
[359696671,1746259833461,-274.43157577,0.00019178,2]
[359696672,1746259833471,-400.0,0.00019178,2]
[359696673,1746259833480,-400.0,0.00019178,2]
[359696674,1746259833490,-400.0,0.00019178,2]
[359696675,1746259833501,-400.0,0.00019178,2]
[359696676,1746259833511,-400.0,0.00019178,2]
[359696677,1746259833520,-400.0,0.00019178,2]
[359696678,1746259833533,-400.0,0.00019178,2]
[359696679,1746259833542,-400.0,0.00019178,2]
[359696680,1746259833553,-400.0,0.00019178,2]
[359696681,1746259833562,-400.0,0.00019178,2]
[359696682,1746259833573,-405.64311383,0.00019178,2]
[359696683,1746259833583,-400.0,0.00019178,2]
[359696684,1746259833592,-400.0,0.00019178,2]
[359696685,1746259833602,-400.0,0.00019178,2]
[359696686,1746259833612,-400.0,0.00019178,2]
[359696687,1746259833621,-400.0,0.00019178,2]
[359696688,1746259833632,-400.0,0.00019178,2]
[359696689,1746259833642,-400.0,0.00019178,2]
[359696690,1746259833652,-400.0,0.00019178,2]
[359696691,1746259833662,-400.0,0.00019178,2]
[359696692,1746259833673,-205.43486957,0.00019178,2]
[359696693,1746259833683,-400.0,0.00019178,2]
[359696694,1746259833692,-400.0,0.00019178,2]
[359696695,1746259833703,-400.0,0.00019178,2]
[359696696,1746259833712,-530.49086638,0.00019178,2]
[359696697,1746259833722,-400.0,0.00019178,2]
[359696698,1746259833732,-400.0,0.00019178,2]
[359696699,1746259833742,-207.49507218,0.00019178,2]
[359696700,1746259833752,-281.10236224,0.00019178,2]
[359696701,1746259833762,-400.0,0.00019178,2]
[359696702,1746259833771,-400.0,0.00019178,2]
[359696703,1746259833781,-400.0,0.00019178,2]
[359696704,1746259833790,-507.71767089,0.00019178,2]
[359696705,1746259833800,-453.44,0.00019178,2]
[359696706,1746259833810,-400.0,0.00019178,2]
[359696707,1746259833820,-400.0,0.00019178,2]
[359696708,1746259833829,-400.0,0.00019178,2]
[359696709,1746259833840,-400.0,0.00019178,2]
[359696710,1746259833850,-400.0,0.00019178,2]
[359696711,1746259833860,-400.0,0.00019178,2]
[359696712,1746259833870,-434.20150201,0.00019178,2]
[359696713,1746259833880,-400.0,0.00019178,2]
[359696714,1746259833891,-500.0,0.00019178,2]
[359696715,1746259833900,-500.0,0.00019178,2]
[359696716,1746259833910,-546.32002377,0.00019178,2]
[359696717,1746259833921,-407.73,0.00019178,2]
[359696718,1746259833930,-400.0,0.00019178,2]
[359696719,1746259833940,-167.59209837,0.00019178,2]
[359696720,1746259833950,-1437.1,0.00019178,2]
[359696721,1746259833960,-400.0,0.00019178,2]
[359696722,1746259833969,-400.0,0.00019178,2]
[359696723,1746259833979,-210.41682452,0.00019178,2]
[359696724,1746259833989,-400.0,0.00019178,2]
[359696725,1746259833999,-208.67928963,0.00019178,2]
[359696726,1746259834009,-400.0,0.00019178,2]
[359696727,1746259834018,-520.85142931,0.00019178,2]
[359696728,1746259834029,-400.0,0.00019178,2]
[359696729,1746259834039,-400.0,0.00019178,2]
[359696730,1746259834049,-400.0,0.00019178,2]
[359696731,1746259834058,-400.0,0.00019178,2]
[359696732,1746259834068,-400.0,0.00019178,2]
[359696733,1746259834078,-400.0,0.00019178,2]
[359696734,1746259834091,-400.0,0.00019178,2]
[359696735,1746259834102,-400.0,0.00019178,2]
[359696736,1746259834112,-400.0,0.00019178,2]
[359696737,1746259834123,-400.0,0.00019178,2]
[359696738,1746259834132,-400.0,0.00019178,2]
[359696739,1746259834142,-211.36595387,0.00019178,2]
[359696771,1746259837883,-472.10601518,0.00019068,3]
[359697148,1746260843338,-259.40174932,0.00018,2]
[359697149,1746260848107,-4771.54122509,0.00018,2]
[359697150,1746260852138,-156.1344534,0.00018,2]
[359697151,1746260872066,-201.39105745,0.00018,2]
[359697152,1746260877150,-300.0,0.00018,2]
[359697153,1746260880342,-277.62277488,0.00018,2]
[359697154,1746260883502,-1000.0,0.00018,2]
[359697155,1746260886809,-2521.58080575,0.00018,2]
[359697156,1746260889931,-537.73383512,0.00018,2]
[359697157,1746260893080,-311.30095208,0.00018,2]
[359697158,1746260896996,785.42130864,0.000125,2]
[359697160,1746260913697,155.0,0.00018,30]
[359697161,1746260924993,263.75358285,0.0001515,20]
[359697162,1746260925544,186.53948372,0.00019,20]
[359697163,1746260947885,156.693953,0.00021,10]
[359697164,1746260948167,156.693953,0.00022,30]
[359697165,1746260954309,-392.0,0.000181,2]
[359697166,1746260959229,-608.0,0.000181,2]
[359697167,1746260959251,-500.0,0.0001863,2]
[359697168,1746260959273,-174.14851862,0.00018799,2]
[359697169,1746260959296,-760.3581434,0.00018799,2]
[359697170,1746260959318,-500.0,0.00018873,2]
[359697171,1746260959338,-500.0,0.00018873,2]
[359697172,1746260959359,-500.0,0.00018873,2]
[359697173,1746260959380,-500.0,0.00018873,2]
[359697174,1746260959400,-500.0,0.00018873,2]
[359697175,1746260959420,-502.90072755,0.00018881,2]
[359697176,1746260959440,-300.0,0.00018897,2]
[359697177,1746260959461,-246.94751807,0.00018898,2]
[359697178,1746260959488,-751.96005842,0.00018898,2]
[359697179,1746260959514,-751.96005842,0.00018898,2]
[359697180,1746260959539,-751.96005842,0.00018898,2]
[359697181,1746260959564,-751.96005842,0.00018898,2]
[359697182,1746260959587,-751.96005842,0.00018898,2]
[359697183,1746260959612,-751.96005842,0.00018898,2]
[359697184,1746260959635,-362.12904299,0.00018898,2]
[359697214,1746261031992,-500.0,0.00018873,2]
[359697216,1746261032001,-500.0,0.00018873,2]
[359697218,1746261032011,-300.0,0.00018896,2]
[359697220,1746261032020,-300.0,0.00018897,2]
[359697222,1746261032029,-300.0,0.00018897,2]
[359697224,1746261032039,-300.0,0.00018897,2]
[359697226,1746261032048,-1200.0,0.00018897,2]
[359697228,1746261032058,-389.83101543,0.00018898,2]
[359697230,1746261032067,-751.96005842,0.00018898,2]
[359697232,1746261032077,-751.96005842,0.00018898,2]
[359697234,1746261032086,-751.96005842,0.00018898,2]
[359697236,1746261032095,-751.96005842,0.00018898,2]
[359697238,1746261032105,-751.96005842,0.00018898,2]
[359697240,1746261032114,-751.96005842,0.00018898,2]
[359697242,1746261032123,-751.96005842,0.00018898,2]
[359697243,1746261032133,-751.96005842,0.00018898,2]
[359697245,1746261032142,-751.96005842,0.00018898,2]
[359697246,1746261032151,-511.92818552,0.00018898,2]
[359698241,1746261478571,691.2633387,0.00017913,2]
[359698245,1746261541916,174.806005,0.00021,10]
[359698246,1746261545131,156.693954,0.00021,10]
[359698247,1746261545702,156.693954,0.00022,30]
[359698250,1746261684006,604.85542138,0.00017912,2]
[359698261,1746261866646,174.1485186,0.00017912,2]
[359698262,1746261889090,529.24849369,0.00017912,2]
[359698263,1746262033169,-300.0,0.0001801,2]
[359698264,1746262033190,-300.0,0.0001801,2]
[359698265,1746262033210,-300.0,0.0001801,2]
[359698266,1746262033231,-172.86326264,0.00018011,2]
[359698267,1746262033253,-332.83472029,0.00018011,2]
[359698268,1746262035139,-197.59239222,0.00018011,2]
[359698269,1746262094344,463.09243197,0.00017912,2]
[359698272,1746262165103,-669.57288749,0.00018011,2]
[359698273,1746262165126,-300.0,0.00018011,2]
[359698274,1746262165147,-300.0,0.00018011,2]
[359698275,1746262165168,-502.42495493,0.00018012,2]
[359698276,1746262165188,-500.0,0.00018012,2]
[359698277,1746262165212,-500.0,0.00018012,2]
[359698278,1746262165233,-193.53242469,0.00018012,2]
[359698279,1746262165257,-500.0,0.00018012,2]
[359698280,1746262165280,-500.0,0.00018012,2]
[359698281,1746262165310,-500.0,0.00018012,2]
[359698282,1746262165330,-500.0,0.00018012,2]
[359698283,1746262165351,-500.0,0.00018012,2]
[359698284,1746262165372,-500.0,0.00018012,2]
[359698285,1746262165392,-500.0,0.00018012,2]
[359698286,1746262165419,-500.0,0.00018012,2]
[359698287,1746262165441,-500.0,0.00018012,2]
[359698288,1746262165464,-212.27737533,0.00018012,2]
[359698289,1746262165486,-484.0564463,0.00018012,2]
[359698290,1746262165518,-500.0,0.00018012,2]
[359698291,1746262165540,-247.74792318,0.00018012,2]
[359698292,1746262165569,-500.0,0.00018012,2]
[359698293,1746262165598,-500.0,0.00018012,2]
[359698294,1746262165622,-500.0,0.00018012,2]
[359698295,1746262165653,-500.0,0.00018012,2]
[359698296,1746262165679,-500.0,0.00018012,2]
[359698297,1746262165703,-500.0,0.00018012,2]
[359698298,1746262165731,-500.0,0.00018012,2]
[359698299,1746262165758,-500.0,0.00018012,2]
[359698300,1746262165786,-500.0,0.00018012,2]
[359698301,1746262165813,-500.0,0.00018012,2]
[359698302,1746262165840,-500.0,0.00018012,2]
[359698303,1746262165866,-500.0,0.00018012,2]
[359698304,1746262165890,-500.0,0.00018012,2]
[359698305,1746262165913,-500.0,0.00018012,2]
[359698306,1746262165939,-500.0,0.00018012,2]
[359698307,1746262165965,-500.0,0.00018012,2]
[359698308,1746262165988,-500.0,0.00018012,2]
[359698309,1746262166015,-500.0,0.00018012,2]
[359698310,1746262166040,-500.0,0.00018012,2]
[359698311,1746262166064,-500.0,0.00018012,2]
[359698312,1746262166088,-500.0,0.00018012,2]
[359698313,1746262166113,-500.0,0.00018012,2]
[359698314,1746262166138,-500.0,0.00018012,2]
[359698315,1746262166161,-500.0,0.00018012,2]
[359698316,1746262166186,-500.0,0.00018012,2]
[359698317,1746262166210,-500.0,0.00018012,2]
[359698318,1746262166234,-500.0,0.00018012,2]
[359698319,1746262166258,-500.0,0.00018012,2]
[359698320,1746262166282,-500.0,0.00018012,2]
[359698321,1746262166547,-180.44684134,0.00018012,2]
[359698322,1746262166576,-500.0,0.00018012,2]
[359698323,1746262166604,-500.0,0.00018012,2]
[359698324,1746262166632,-500.0,0.00018012,2]
[359698325,1746262166656,-500.0,0.00018012,2]
[359698326,1746262166681,-500.0,0.00018012,2]
[359698327,1746262166707,-500.0,0.00018012,2]
[359698328,1746262166732,-500.0,0.00018012,2]
[359698329,1746262166756,-500.0,0.00018012,2]
[359698330,1746262166782,-500.0,0.00018012,2]
[359698331,1746262166805,-500.0,0.00018012,2]
[359698332,1746262166832,-500.0,0.00018012,2]
[359698333,1746262166855,-500.0,0.00018012,2]
[359698334,1746262166880,-500.0,0.00018012,2]
[359698335,1746262166904,-500.0,0.00018012,2]
[359698336,1746262166929,-500.0,0.00018012,2]
[359698337,1746262166954,-789.69763275,0.00018012,2]
[359698338,1746262166978,-789.69763275,0.00018012,2]
[359698339,1746262167006,-789.69763275,0.00018012,2]
[359698340,1746262167030,-789.69763275,0.00018012,2]
[359698341,1746262167054,-789.69763275,0.00018012,2]
[359698342,1746262167080,-789.69763275,0.00018012,2]
[359698343,1746262167104,-789.69763275,0.00018012,2]
[359698344,1746262167128,-789.69763275,0.00018012,2]
[359698345,1746262167152,-789.69763275,0.00018012,2]
[359698346,1746262167176,-789.69763275,0.00018012,2]
[359698347,1746262167201,-789.69763275,0.00018012,2]
[359698348,1746262167224,-789.69763275,0.00018012,2]
[359698349,1746262167248,-789.69763275,0.00018012,2]
[359698350,1746262167272,-789.69763275,0.00018012,2]
[359698351,1746262167297,-789.69763275,0.00018012,2]
[359698352,1746262167320,-789.69763275,0.00018012,2]
[359698353,1746262167345,-789.69763275,0.00018012,2]
[359698354,1746262167369,-789.69763275,0.00018012,2]
[359698355,1746262167393,-789.69763275,0.00018012,2]
[359698356,1746262167424,-789.69763275,0.00018012,2]
[359698357,1746262167453,-789.69763275,0.00018012,2]
[359698358,1746262167477,-789.69763275,0.00018012,2]
[359698359,1746262167506,-789.69763275,0.00018012,2]
[359698360,1746262167530,-789.69763275,0.00018012,2]
[359698361,1746262167556,-789.69763275,0.00018012,2]
[359698362,1746262167581,-789.69763275,0.00018012,2]
[359698363,1746262167604,-789.69763275,0.00018012,2]
[359698364,1746262167628,-789.69763275,0.00018012,2]
[359698365,1746262167652,-789.69763275,0.00018012,2]
[359698366,1746262167677,-789.69763275,0.00018012,2]
[359698367,1746262167701,-789.69763275,0.00018012,2]
[359698368,1746262167725,-789.69763275,0.00018012,2]
[359698369,1746262167748,-789.69763275,0.00018012,2]
[359698370,1746262167772,-789.69763275,0.00018012,2]
[359698371,1746262167798,-789.69763275,0.00018012,2]
[359698372,1746262167822,-820.40809625,0.00018012,2]
[359698373,1746262167848,-820.40809625,0.00018012,2]
[359698374,1746262167875,-820.40809625,0.00018012,2]
[359698375,1746262167902,-820.40809625,0.00018012,2]
[359698376,1746262167929,-820.40809625,0.00018012,2]
[359698377,1746262167954,-820.40809625,0.00018012,2]
[359698378,1746262167979,-820.40809625,0.00018012,2]
[359698379,1746262168004,-820.40809625,0.00018012,2]
[359698380,1746262168029,-820.40809625,0.00018012,2]
[359698381,1746262168050,-7949.79896795,0.00018014,2]
[359698382,1746262173128,-12687.66367295,0.00018014,2]
[359698383,1746262173152,-635.77558477,0.00018544,2]
[359698384,1746262173173,-270.00669769,0.0001863,2]
[359698401,1746262232076,-105.05732722,0.0001863,2]
[359698402,1746262232087,-925.64964668,0.000189,2]
[359698403,1746262232096,-300.0,0.00018999,2]
[359698404,1746262232106,-300.0,0.00018999,2]
[359698405,1746262232116,-12462.13,0.00019,3]
[359698406,1746262232126,-841.47485993,0.00019,3]
[359698407,1746262232135,-174.1485186,0.00019078,2]
[359698408,1746262232145,-504.0855461,0.00019173,2]
[359698409,1746262232154,-500.0,0.00019173,2]
[359698410,1746262232164,-500.0,0.00019173,2]
[359698411,1746262232174,-504.0706183,0.00019173,2]
[359698412,1746262232183,-503.30888246,0.00019173,2]
[359698413,1746262232193,-459.45775951,0.00019173,2]
[359698414,1746262232203,-505.83212638,0.00019173,2]
[359698415,1746262232214,-500.0,0.00019173,2]
[359698416,1746262232224,-500.0,0.00019173,2]
[359698417,1746262232233,-500.0,0.00019173,2]
[359698418,1746262232244,-501.69581101,0.00019173,2]
[359698419,1746262232254,-535.69647275,0.00019178,2]
[359698423,1746262232507,-400.0,0.00019178,2]
[359698424,1746262232524,-151.0,0.00019178,2]
[359698425,1746262232534,-400.0,0.00019178,2]
[359698426,1746262232544,-400.0,0.00019178,2]
[359698427,1746262232555,-400.0,0.00019178,2]
[359698428,1746262232564,-400.0,0.00019178,2]
[359698429,1746262232574,-400.0,0.00019178,2]
[359698430,1746262232585,-127.25363719,0.00019178,2]
[359698431,1746262232597,-272.74636281,0.00019178,2]
[359698432,1746262232606,-117.07259963,0.00019178,2]
[359698433,1746262232618,-282.92740037,0.00019178,2]
[359698434,1746262232627,-400.0,0.00019178,2]
[359698435,1746262232636,-400.0,0.00019178,2]
[359698436,1746262232647,-400.0,0.00019178,2]
[359698437,1746262232656,-400.0,0.00019178,2]
[359698438,1746262232665,-400.0,0.00019178,2]
[359698439,1746262232674,-400.0,0.00019178,2]
[359698440,1746262232684,-400.0,0.00019178,2]
[359698441,1746262232694,-1562.4,0.00019178,2]
[359698442,1746262232703,-400.0,0.00019178,2]
[359698443,1746262232714,-400.0,0.00019178,2]
[359698444,1746262232723,-523.96,0.00019178,2]
[359698445,1746262232732,-400.0,0.00019178,2]
[359698446,1746262232743,-400.0,0.00019178,2]
[359698447,1746262232752,-400.0,0.00019178,2]
[359698448,1746262232762,-400.0,0.00019178,2]
[359698449,1746262232771,-400.0,0.00019178,2]
[359698450,1746262232781,-400.0,0.00019178,2]
[359698451,1746262232791,-536.35369783,0.00019178,2]
[359698452,1746262232805,-400.0,0.00019178,2]
[359698453,1746262232819,-400.0,0.00019178,2]
[359698454,1746262232830,-400.0,0.00019178,2]
[359698455,1746262232846,-400.0,0.00019178,2]
[359698456,1746262232861,-400.0,0.00019178,2]
[359698457,1746262232875,-400.0,0.00019178,2]
[359698458,1746262232886,-400.0,0.00019178,2]
[359698459,1746262232896,-400.0,0.00019178,2]
[359698460,1746262232907,-400.0,0.00019178,2]
[359698461,1746262232916,-400.0,0.00019178,2]
[359698462,1746262232926,-434.55,0.00019178,2]
[359698463,1746262232935,-282.92169762,0.00019178,2]
[359698464,1746262232948,-117.07830238,0.00019178,2]
[359698465,1746262232958,-400.0,0.00019178,2]
[359698466,1746262232967,-400.0,0.00019178,2]
[359698467,1746262232977,-434.43,0.00019178,2]
[359698468,1746262232987,-400.0,0.00019178,2]
[359698469,1746262232997,-400.0,0.00019178,2]
[359698470,1746262233007,-311.40489222,0.00019178,2]
[359698471,1746262233026,-1065.81510778,0.00019178,2]
[359698472,1746262233035,-400.0,0.00019178,2]
[359698473,1746262233045,-400.0,0.00019178,2]
[359698474,1746262233054,-465.84,0.00019178,2]
[359698475,1746262233066,-400.0,0.00019178,2]
[359698476,1746262233075,-400.0,0.00019178,2]
[359698477,1746262233085,-400.0,0.00019178,2]
[359698478,1746262233095,-400.0,0.00019178,2]
[359698479,1746262233104,-400.0,0.00019178,2]
[359698480,1746262233113,-400.0,0.00019178,2]
[359698481,1746262233123,-400.0,0.00019178,2]
[359698482,1746262233132,-443.37,0.00019178,2]
[359698483,1746262233144,-400.0,0.00019178,2]
[359698484,1746262233154,-509.10760643,0.00019178,2]
[359698485,1746262233163,-400.0,0.00019178,2]
[359698486,1746262233173,-232.79248769,0.00019178,2]
[359699539,1746262365309,1000.0,0.00017911,2]
[359699553,1746263242118,-269.43477719,0.00018039,2]
[359699556,1746263251128,-836.81986941,0.00018039,2]
[359699557,1746263251148,-484.8228049,0.00018243,2]
[359699558,1746263251167,-617.09976445,0.000189,2]
[359699559,1746263251188,-405.205878,0.00018972,2]
[359699560,1746263251207,-220.25653946,0.00018972,2]
[359699561,1746263251227,-181.17350924,0.00018972,2]
[359699562,1746263251247,-220.25653944,0.00018973,2]
[359699563,1746263251267,-220.25653944,0.00018973,2]
[359699564,1746263251287,-181.1735092,0.00018997,2]
[359699565,1746263251306,-181.1735092,0.00019023,2]
[359699566,1746263251326,-181.1735092,0.00019048,2]
[359699567,1746263251345,-207.4,0.00019065,2]
[359699568,1746263251364,-193.53242469,0.00019065,2]
[359699569,1746263251383,-500.0,0.00019065,2]
[359699570,1746263251403,-500.0,0.00019065,2]
[359699571,1746263251422,-559.18077651,0.00019065,2]
[359699572,1746263251446,-500.0,0.00019065,2]
[359699573,1746263251465,-500.0,0.00019065,2]
[359699574,1746263251486,-500.0,0.00019065,2]
[359699575,1746263251516,-250.67084411,0.00019065,2]
[359699576,1746263251538,-500.0,0.00019065,2]
[359699577,1746263251560,-500.0,0.00019065,2]
[359699578,1746263251580,-500.0,0.00019065,2]
[359699579,1746263251602,-500.0,0.00019065,2]
[359699580,1746263251622,-439.04,0.00019066,3]
[359699581,1746263251643,-219.52,0.00019066,3]
[359699582,1746263251662,-152.0,0.00019066,2]
[359699583,1746263251684,-9838.23465165,0.00019066,2]
[359699622,1746263432203,-425.2544163,0.000189,2]
[359699623,1746263432213,-354.55514325,0.00018976,2]
[359699625,1746263432222,-329.28,0.00019055,3]
[359699627,1746263432232,-1200.0,0.00019064,2]
[359699629,1746263432241,-300.0,0.00019064,2]
[359699631,1746263432251,-500.0,0.00019065,2]
[359699633,1746263432261,-500.0,0.00019065,2]
[359699635,1746263432272,-474.16043217,0.00019065,2]
[359699637,1746263432281,-655.71856284,0.00019065,2]
[359699639,1746263432291,-655.71856284,0.00019065,2]
[359699641,1746263432300,-655.71856284,0.00019065,2]
[359699643,1746263432309,-655.71856284,0.00019065,2]
[359699645,1746263432318,-655.71856284,0.00019065,2]
[359699647,1746263432328,-655.71856284,0.00019065,2]
[359699649,1746263432337,-655.71856284,0.00019065,2]
[359699651,1746263432346,-655.71856284,0.00019065,2]
[359699653,1746263432355,-655.71856284,0.00019065,2]
[359699655,1746263432364,-655.71856284,0.00019065,2]
[359699657,1746263432373,-655.71856284,0.00019065,2]
[359699659,1746263432382,-655.71856284,0.00019065,2]
[359699661,1746263432391,-655.71856284,0.00019065,2]
[359699663,1746263432400,-655.71856284,0.00019065,2]
[359699665,1746263432409,-655.71856284,0.00019065,2]
[359699667,1746263432418,-655.71856284,0.00019065,2]
[359699669,1746263432427,-655.71856284,0.00019065,2]
[359699670,1746263432436,-655.71856284,0.00019065,2]
[359699671,1746263432445,-655.71856284,0.00019065,2]
[359699672,1746263432454,-655.71856284,0.00019065,2]
[359699673,1746263432464,-655.71856284,0.00019065,2]